fUSD/lending_fUSD_20250616
["ID","MTS","AMOUNT","RATE_DAILY","PERIOD"]
[366088978,1750057832908,-151.0,0.00016438,2]
[366088979,1750057832918,-151.0,0.00016438,2]
[366088980,1750057832929,-151.0,0.00016438,2]
[366088981,1750057832939,-151.0,0.00016438,2]
[366088982,1750057832950,-151.0,0.00016438,2]
[366088983,1750057832960,-151.0,0.00016438,2]
[366088984,1750057832970,-260.458498,0.00016438,2]
[366088985,1750057832986,-260.458498,0.00016438,2]
[366088986,1750057832996,-260.458498,0.00016438,2]
[366088987,1750057833006,-260.458498,0.00016438,2]
[366088988,1750057833016,-151.0,0.00016438,2]
[366088989,1750057833027,-153.867163,0.00016438,2]
[366088990,1750057833038,-1008.113559,0.00016438,2]
[366088992,1750057833049,-1008.113559,0.00016438,2]
[366088995,1750057833060,-1008.113559,0.00016438,2]
[366088997,1750057833071,-1008.113559,0.00016438,2]
[366088999,1750057833083,-151.0,0.00016438,2]
[366089001,1750057833094,-151.0,0.00016438,2]
[366089003,1750057833105,-151.0,0.00016438,2]
[366089005,1750057833115,-151.0,0.00016438,2]
[366089006,1750057833126,-151.0,0.00016438,2]
[366089007,1750057833137,-151.0,0.00016438,2]
[366089008,1750057833147,-151.0,0.00016438,2]
[366089009,1750057833158,-151.970844,0.00016438,2]
[366089010,1750057833169,-151.0,0.00016438,2]
[366089011,1750057833180,-151.0,0.00016438,2]
[366089012,1750057833190,-151.0,0.00016438,2]
[366089013,1750057833202,-151.0,0.00016438,2]
[366089014,1750057833212,-500.0,0.00016438,2]
[366089015,1750057833222,-500.0,0.00016438,2]
[366089016,1750057833233,-500.0,0.00016438,2]
[366089017,1750057833243,-230.69174552,0.00016438,2]
[366089018,1750057833254,-500.0,0.00016438,2]
[366089019,1750057833264,-500.0,0.00016438,2]
[366089020,1750057833275,-500.0,0.00016438,2]
[366089021,1750057833285,-500.0,0.00016438,2]
[366089022,1750057833296,-500.0,0.00016438,2]
[366089023,1750057833306,-490.0,0.00016438,2]
[366089024,1750057833316,-490.7298205,0.00016438,2]
[366089025,1750057833327,-699.88,0.00016438,2]
[366089026,1750057833337,-490.0,0.00016438,2]
[366089027,1750057833348,-493.7286056,0.00016438,2]
[366089028,1750057833358,-491.05454605,0.00016438,2]
[366089029,1750057833369,-490.0,0.00016438,2]
[366089030,1750057833380,-504.00148004,0.00016438,2]
[366089031,1750057833390,-174.39409808,0.00016438,2]
[366089032,1750057833400,-490.0,0.00016438,2]
[366089033,1750057833411,-490.0,0.00016438,2]
[366089034,1750057833434,-494.68379708,0.00016438,2]
[366089035,1750057833446,-492.00723609,0.00016438,2]
[366089036,1750057833458,-490.0,0.00016438,2]
[366089037,1750057833468,-300.15643806,0.00016438,2]
[366089038,1750057833481,-490.0,0.00016438,2]
[366089039,1750057833492,-490.0,0.00016438,2]
[366089040,1750057833503,-490.0,0.00016438,2]
[366089041,1750057833514,-496.53153022,0.00016438,2]
[366089042,1750057833525,-490.0,0.00016438,2]
[366089043,1750057833536,-614.74,0.00016438,2]
[366089044,1750057833547,-490.0,0.00016438,2]
[366089045,1750057833558,-871.84,0.00016438,2]
[366089046,1750057833569,-490.0,0.00016438,2]
[366089047,1750057833580,-490.0,0.00016438,2]
[366089048,1750057833591,-490.0,0.00016438,2]
[366089049,1750057833605,-490.0,0.00016438,2]
[366089050,1750057833616,-490.0,0.00016438,2]
[366089051,1750057833627,-493.5353936,0.00016438,2]
[366089052,1750057833639,-607.27,0.00016438,2]
[366089053,1750057833650,-545.83,0.00016438,2]
[366089054,1750057833661,-490.0,0.00016438,2]
[366089055,1750057833673,-490.69,0.00016438,2]
[366089056,1750057833684,-490.0,0.00016438,2]
[366089057,1750057833694,-490.0,0.00016438,2]
[366089058,1750057833705,-715.6,0.00016438,2]
[366089059,1750057833715,-1189.4,0.00016438,2]
[366089060,1750057833725,-493.67045002,0.00016438,2]
[366089061,1750057833736,-491.17,0.00016438,2]
[366089062,1750057833746,-490.0,0.00016438,2]
[366089063,1750057833757,-497.57872202,0.00016438,2]
[366089064,1750057833768,-604.39,0.00016438,2]
[366089065,1750057833779,-490.0,0.00016438,2]
[366089066,1750057833789,-395.73284872,0.00016438,2]
[366089067,1750057833800,-490.0,0.00016438,2]
[366089068,1750057833810,-490.0,0.00016438,2]
[366089069,1750057833821,-490.0,0.00016438,2]
[366089070,1750057833832,-719.19,0.00016438,2]
[366089071,1750057833843,-481.24287783,0.00016438,2]
[366089072,1750057833859,-490.0,0.00016438,2]
[366089073,1750057833869,-491.61421946,0.00016438,2]
[366089074,1750057833879,-1332.41,0.00016438,2]
[366089075,1750057833890,-490.0,0.00016438,2]
[366089076,1750057833901,-490.0,0.00016438,2]
[366089077,1750057833912,-490.0,0.00016438,2]
[366089078,1750057833922,-870.8,0.00016438,2]
[366089079,1750057833932,-490.0,0.00016438,2]
[366089080,1750057833944,-490.0,0.00016438,2]
[366089081,1750057833954,-490.0,0.00016438,2]
[366089082,1750057833964,-509.03,0.00016438,2]
[366089083,1750057833975,-562.01,0.00016438,2]
[366089084,1750057833986,-490.0,0.00016438,2]
[366089085,1750057833996,-490.0,0.00016438,2]
[366089086,1750057834007,-490.0,0.00016438,2]
[366089087,1750057834017,-490.0,0.00016438,2]
[366089088,1750057834027,-490.0,0.00016438,2]
[366089089,1750057834037,-490.0,0.00016438,2]
[366089090,1750057834048,-490.0,0.00016438,2]
[366089091,1750057834059,-490.0,0.00016438,2]
[366089092,1750057834069,-490.0,0.00016438,2]
[366089093,1750057834081,-490.0,0.00016438,2]
[366089094,1750057834091,-490.0,0.00016438,2]
[366089095,1750057834102,-1534.97,0.00016438,2]
[366089096,1750057834112,-490.0,0.00016438,2]
[366089097,1750057834123,-501.06487048,0.00016438,2]
[366089098,1750057834133,-490.0,0.00016438,2]
[366089099,1750057834145,-490.0,0.00016438,2]
[366089100,1750057834155,-490.0,0.00016438,2]
[366089101,1750057834166,-490.0,0.00016438,2]
[366089102,1750057834176,-490.0,0.00016438,2]
[366089103,1750057834186,-1690.55,0.00016438,2]
[366089104,1750057834196,-548.24,0.00016438,2]
[366089105,1750057834206,-490.0,0.00016438,2]
[366089106,1750057834216,-490.0,0.00016438,2]
[366089107,1750057834227,-490.0,0.00016438,2]
[366089108,1750057834237,-490.0,0.00016438,2]
[366089109,1750057834247,-490.0,0.00016438,2]
[366089110,1750057834258,-1539.6,0.00016438,2]
[366089111,1750057834269,-712.33,0.00016438,2]
[366089112,1750057834280,-531.26,0.00016438,2]
[366089113,1750057834295,-1406.77,0.00016438,2]
[366089114,1750057834305,-606.91,0.00016438,2]
[366089115,1750057834316,-496.82974041,0.00016438,2]
[366089116,1750057834327,-525.99,0.00016438,2]
[366089117,1750057834337,-1096.45,0.00016438,2]
[366089118,1750057834348,-698.24,0.00016438,2]
[366089119,1750057834359,-490.0,0.00016438,2]
[366089120,1750057834369,-490.0,0.00016438,2]
[366089121,1750057834380,-490.0,0.00016438,2]
[366089122,1750057834390,-490.0,0.00016438,2]
[366089123,1750057834401,-490.0,0.00016438,2]
[366089124,1750057834412,-518.26,0.00016438,2]
[366089125,1750057834422,-792.36,0.00016438,2]
[366089126,1750057834434,-490.0,0.00016438,2]
[366089127,1750057834444,-502.62,0.00016438,2]
[366089128,1750057834455,-490.0,0.00016438,2]
[366089129,1750057834465,-490.0,0.00016438,2]
[366089130,1750057834476,-490.0,0.00016438,2]
[366089131,1750057834487,-566.37,0.00016438,2]
[366089132,1750057834497,-490.0,0.00016438,2]
[366089133,1750057834508,-490.0,0.00016438,2]
[366089134,1750057834518,-499.38743878,0.00016438,2]
[366089135,1750057834529,-575.79,0.00016438,2]
[366089136,1750057834539,-490.0,0.00016438,2]
[366089137,1750057834549,-938.27,0.00016438,2]
[366089138,1750057834559,-490.0,0.00016438,2]
[366089139,1750057834570,-1201.68,0.00016438,2]
[366089140,1750057834581,-490.0,0.00016438,2]
[366089141,1750057834591,-490.0,0.00016438,2]
[366089142,1750057834604,-490.0,0.00016438,2]
[366089143,1750057834615,-1126.89,0.00016438,2]
[366089144,1750057834625,-490.0,0.00016438,2]
[366089145,1750057834636,-564.48,0.00016438,2]
[366089146,1750057834646,-490.0,0.00016438,2]
[366089147,1750057834657,-490.0,0.00016438,2]
[366089148,1750057834667,-515.39,0.00016438,2]
[366089149,1750057834680,-1612.27,0.00016438,2]
[366089150,1750057834690,-490.0,0.00016438,2]
[366089151,1750057834700,-1121.33,0.00016438,2]
[366089152,1750057834711,-490.0,0.00016438,2]
[366089153,1750057834721,-490.0,0.00016438,2]
[366089154,1750057834735,-610.93,0.00016438,2]
[366089155,1750057834745,-490.0,0.00016438,2]
[366089156,1750057834755,-1042.6,0.00016438,2]
[366089157,1750057834764,-490.0,0.00016438,2]
[366089158,1750057834774,-490.0,0.00016438,2]
[366089159,1750057834784,-490.0,0.00016438,2]
[366089160,1750057834795,-1424.3,0.00016438,2]
[366089161,1750057834805,-490.0,0.00016438,2]
[366089162,1750057834815,-490.0,0.00016438,2]
[366089163,1750057834826,-555.15,0.00016438,2]
[366089164,1750057834836,-300.0,0.00016438,2]
[366089165,1750057834846,-490.0,0.00016438,2]
[366089166,1750057834856,-726.46,0.00016438,2]
[366089167,1750057834866,-623.89,0.00016438,2]
[366089168,1750057834876,-490.0,0.00016438,2]
[366089169,1750057834886,-628.26,0.00016438,2]
[366089170,1750057834896,-490.0,0.00016438,2]
[366089171,1750057834906,-252.77,0.00016438,2]
[366089172,1750057834917,-1049.67,0.00016438,2]
[366089173,1750057834927,-490.0,0.00016438,2]
[366089174,1750057834938,-489.91118686,0.00016438,2]
[366089175,1750057834947,-490.0,0.00016438,2]
[366089176,1750057834957,-568.46249666,0.00016438,2]
[366089177,1750057834967,-490.0,0.00016438,2]
[366089178,1750057834977,-781.82,0.00016438,2]
[366089179,1750057834986,-490.0,0.00016438,2]
[366089180,1750057834996,-490.0,0.00016438,2]
[366089181,1750057835006,-490.0,0.00016438,2]
[366089182,1750057835017,-490.0,0.00016438,2]
[366089183,1750057835027,-578.56,0.00016438,2]
[366089184,1750057835037,-1219.79,0.00016438,2]
[366089185,1750057835047,-815.04,0.00016438,2]
[366089186,1750057835057,-739.47,0.00016438,2]
[366089187,1750057835066,-490.0,0.00016438,2]
[366089188,1750057835077,-490.0,0.00016438,2]
[366089189,1750057835087,-490.81088513,0.00016438,2]
[366089190,1750057835098,-491.05,0.00016438,2]
[366089191,1750057835108,-983.69,0.00016438,2]
[366089192,1750057835118,-892.95,0.00016438,2]
[366089193,1750057835128,-490.0,0.00016438,2]
[366089194,1750057835138,-446.59403695,0.00016438,2]
[366089195,1750057835147,-908.12,0.00016438,2]
[366089196,1750057835158,-490.0,0.00016438,2]
[366089197,1750057835167,-490.0,0.00016438,2]
[366089198,1750057835188,-675.07,0.00016438,2]
[366089199,1750057835199,-490.0,0.00016438,2]
[366089200,1750057835209,-490.0,0.00016438,2]
[366089201,1750057835220,-490.0,0.00016438,2]
[366089202,1750057835230,-490.0,0.00016438,2]
[366089203,1750057835240,-490.0,0.00016438,2]
[366089204,1750057835250,-1569.44,0.00016438,2]
[366089205,1750057835260,-430.0,0.00016438,2]
[366089206,1750057835270,-490.0,0.00016438,2]
[366089207,1750057835281,-490.0,0.00016438,2]
[366089208,1750057835291,-490.0,0.00016438,2]
[366089209,1750057835300,-490.0,0.00016438,2]
[366089210,1750057835311,-490.0,0.00016438,2]
[366089211,1750057835321,-839.6,0.00016438,2]
[366089212,1750057835331,-490.0,0.00016438,2]
[366089213,1750057835341,-490.0,0.00016438,2]
[366089214,1750057835351,-563.05,0.00016438,2]
[366089215,1750057835361,-539.45,0.00016438,2]
[366089216,1750057835372,-490.0,0.00016438,2]
[366089217,1750057835382,-490.0,0.00016438,2]
[366089218,1750057835392,-492.18734899,0.00016438,2]
[366089219,1750057835403,-1389.73,0.00016438,2]
[366089220,1750057835413,-1035.19,0.00016438,2]
[366089221,1750057835424,-550.63,0.00016438,2]
[366089222,1750057835435,-490.0,0.00016438,2]
[366089223,1750057835445,-490.0,0.00016438,2]
[366089224,1750057835455,-623.61,0.00016438,2]
[366089225,1750057835466,-490.0,0.00016438,2]
[366089226,1750057835476,-1328.81,0.00016438,2]
[366089227,1750057835486,-490.0,0.00016438,2]
[366089228,1750057835496,-1611.51,0.00016438,2]
[366089229,1750057835506,-600.3,0.00016438,2]
[366089230,1750057835517,-1059.48,0.00016438,2]
[366089231,1750057835527,-515.66881302,0.00016438,2]
[366089232,1750057835537,-490.0,0.00016438,2]
[366089233,1750057835548,-1156.52,0.00016438,2]
[366089234,1750057835558,-490.0,0.00016438,2]
[366089235,1750057835568,-490.0,0.00016438,2]
[366089236,1750057835578,-490.0,0.00016438,2]
[366089237,1750057835589,-1465.78,0.00016438,2]
[366089238,1750057835601,-476.64977424,0.00016438,2]
[366089239,1750057835611,-466.07498801,0.00016438,2]
[366089240,1750057835627,-1660.9,0.00016438,2]
[366089241,1750057835637,-682.64,0.00016438,2]
[366089242,1750057835649,-663.72,0.00016438,2]
[366089243,1750057835659,-490.0,0.00016438,2]
[366089244,1750057835669,-490.0,0.00016438,2]
[366089245,1750057835682,-685.24,0.00016438,2]
[366089246,1750057835693,-490.0,0.00016438,2]
[366089247,1750057835703,-490.0,0.00016438,2]
[366089248,1750057835713,-584.23,0.00016438,2]
[366089249,1750057835723,-649.55,0.00016438,2]
[366089250,1750057835732,-492.73802648,0.00016438,2]
[366089251,1750057835743,-490.0,0.00016438,2]
[366089252,1750057835752,-490.91705611,0.00016438,2]
[366089253,1750057835762,-565.94,0.00016438,2]
[366089254,1750057835773,-964.13,0.00016438,2]
[366089255,1750057835783,-670.39,0.00016438,2]
[366089256,1750057835792,-490.0,0.00016438,2]
[366089257,1750057835803,-607.08,0.00016438,2]
[366089258,1750057835813,-490.0,0.00016438,2]
[366089259,1750057835823,-494.57989517,0.00016438,2]
[366089260,1750057835833,-490.0,0.00016438,2]
[366089261,1750057835843,-631.7,0.00016438,2]
[366089262,1750057835853,-170.12385207,0.00016438,2]
[366089263,1750057835863,-490.0,0.00016438,2]
[366089264,1750057835874,-708.84,0.00016438,2]
[366089265,1750057835883,-490.0,0.00016438,2]
[366089266,1750057835894,-490.0,0.00016438,2]
[366089267,1750057835904,-490.0,0.00016438,2]
[366089268,1750057835916,-490.0,0.00016438,2]
[366089269,1750057835927,-1013.06,0.00016438,2]
[366089270,1750057835939,-1071.69,0.00016438,2]
[366089271,1750057835950,-493.13939244,0.00016438,2]
[366089272,1750057835960,-745.52,0.00016438,2]
[366089273,1750057835970,-606.56,0.00016438,2]
[366089274,1750057835980,-490.0,0.00016438,2]
[366089275,1750057835991,-490.0,0.00016438,2]
[366089276,1750057836002,-490.0,0.00016438,2]
[366089277,1750057836012,-490.0,0.00016438,2]
[366089278,1750057836023,-490.0,0.00016438,2]
[366089279,1750057836034,-490.0,0.00016438,2]
[366089280,1750057836045,-584.00901012,0.00016438,2]
[366089281,1750057836060,-1088.09,0.00016438,2]
[366089282,1750057836070,-490.0,0.00016438,2]
[366089283,1750057836080,-1498.3,0.00016438,2]
[366089284,1750057836091,-490.0,0.00016438,2]
[366089285,1750057836103,-490.0,0.00016438,2]
[366089286,1750057836114,-519.0,0.00016438,2]
[366089287,1750057836125,-490.0,0.00016438,2]
[366089288,1750057836136,-744.35,0.00016438,2]
[366089289,1750057836147,-490.0,0.00016438,2]
[366089290,1750057836157,-1301.93,0.00016438,2]
[366089291,1750057836168,-490.0,0.00016438,2]
[366089292,1750057836178,-571.48,0.00016438,2]
[366089293,1750057836188,-705.3,0.00016438,2]
[366089294,1750057836199,-490.0,0.00016438,2]
[366089295,1750057836209,-490.0,0.00016438,2]
[366089296,1750057836219,-490.0,0.00016438,2]
[366089297,1750057836229,-490.0,0.00016438,2]
[366089298,1750057836239,-490.0,0.00016438,2]
[366089299,1750057836250,-1329.19,0.00016438,2]
[366089300,1750057836260,-592.94,0.00016438,2]
[366089301,1750057836272,-490.0,0.00016438,2]
[366089302,1750057836283,-490.73451155,0.00016438,2]
[366089303,1750057836295,-2265.48,0.00016438,2]
[366089304,1750057836306,-490.0,0.00016438,2]
[366089305,1750057836317,-577.84,0.00016438,2]
[366089306,1750057836328,-503.16139953,0.00016438,2]
[366089307,1750057836339,-1344.73,0.00016438,2]
[366089308,1750057836350,-655.92,0.00016438,2]
[366089309,1750057836361,-880.78,0.00016438,2]
[366089310,1750057836372,-490.0,0.00016438,2]
[366089311,1750057836383,-1414.55,0.00016438,2]
[366089312,1750057836394,-538.64,0.00016438,2]
[366089313,1750057836404,-492.98973163,0.00016438,2]
[366089314,1750057836847,-1261.6,0.00016438,2]
[366089315,1750057836859,-490.0,0.00016438,2]
[366089316,1750057836870,-598.42,0.00016438,2]
[366089317,1750057836880,-1010.23,0.00016438,2]
[366089318,1750057836891,-490.0,0.00016438,2]
[366089319,1750057836904,-490.0,0.00016438,2]
[366089320,1750057836915,-1089.15,0.00016438,2]
[366089321,1750057836925,-2235.46,0.00016438,2]
[366089322,1750057836935,-490.0,0.00016438,2]
[366089323,1750057836945,-493.67921577,0.00016438,2]
[366089324,1750057836955,-1515.89,0.00016438,2]
[366089325,1750057836966,-490.0,0.00016438,2]
[366089326,1750057836975,-692.43,0.00016438,2]
[366089327,1750057836986,-490.0,0.00016438,2]
[366089328,1750057836995,-490.0,0.00016438,2]
[366089329,1750057837006,-1909.15,0.00016438,2]
[366089330,1750057837017,-1094.96,0.00016438,2]
[366089331,1750057837027,-490.0,0.00016438,2]
[366089332,1750057837037,-490.0,0.00016438,2]
[366089333,1750057837048,-490.0,0.00016438,2]
[366089334,1750057837058,-490.0,0.00016438,2]
[366089335,1750057837068,-491.18957131,0.00016438,2]
[366089336,1750057837079,-361.07701783,0.00016438,2]
[366089337,1750057837089,-490.0,0.00016438,2]
[366089338,1750057837098,-674.76,0.00016438,2]
[366089339,1750057837108,-649.33,0.00016438,2]
[366089340,1750057837118,-1028.14,0.00016438,2]
[366089341,1750057837129,-490.0,0.00016438,2]
[366089342,1750057837138,-490.0,0.00016438,2]
[366089343,1750057837148,-490.0,0.00016438,2]
[366089344,1750057837158,-490.0,0.00016438,2]
[366089345,1750057837169,-490.0,0.00016438,2]
[366089346,1750057837179,-490.0,0.00016438,2]
[366089347,1750057837188,-560.78,0.00016438,2]
[366089348,1750057837198,-1170.18,0.00016438,2]
[366089349,1750057837207,-522.96,0.00016438,2]
[366089350,1750057837216,-490.0,0.00016438,2]
[366089351,1750057837227,-490.0,0.00016438,2]
[366089352,1750057837237,-490.0,0.00016438,2]
[366089353,1750057837247,-649.69,0.00016438,2]
[366089354,1750057837257,-490.0,0.00016438,2]
[366089355,1750057837268,-961.81,0.00016438,2]
[366089356,1750057837278,-490.0,0.00016438,2]
[366089357,1750057837288,-506.89722738,0.00016438,2]
[366089358,1750057837298,-604.75,0.00016438,2]
[366089359,1750057837308,-490.0,0.00016438,2]
[366089360,1750057837318,-490.0,0.00016438,2]
[366089361,1750057837328,-507.66,0.00016438,2]
[366089362,1750057837350,-490.0,0.00016438,2]
[366089363,1750057837363,-490.0,0.00016438,2]
[366089364,1750057837374,-490.0,0.00016438,2]
[366089365,1750057837385,-490.0,0.00016438,2]
[366089366,1750057837396,-642.46,0.00016438,2]
[366089367,1750057837407,-490.0,0.00016438,2]
[366089368,1750057837418,-502.25,0.00016438,2]
[366089369,1750057837429,-1020.35,0.00016438,2]
[366089370,1750057837440,-504.43675865,0.00016438,2]
[366089371,1750057837452,-490.0,0.00016438,2]
[366089372,1750057837462,-1656.82,0.00016438,2]
[366089373,1750057837474,-618.63,0.00016438,2]
[366089374,1750057837484,-1059.08,0.00016438,2]
[366089375,1750057837495,-490.0,0.00016438,2]
[366089376,1750057837507,-490.0,0.00016438,2]
[366089377,1750057837518,-490.0,0.00016438,2]
[366089378,1750057837529,-212.54894843,0.00016438,2]
[366089379,1750057837540,-490.0,0.00016438,2]
[366089380,1750057837551,-490.0,0.00016438,2]
[366089381,1750057837562,-534.82,0.00016438,2]
[366089382,1750057837573,-500.0,0.00016438,2]
[366089383,1750057837585,-500.0,0.00016438,2]
[366089384,1750057837597,-490.0,0.00016438,2]
[366089385,1750057837609,-1094.95,0.00016438,2]
[366089386,1750057837620,-780.03,0.00016438,2]
[366089387,1750057837631,-490.0,0.00016438,2]
[366089388,1750057837643,-490.0,0.00016438,2]
[366089389,1750057837654,-491.72315563,0.00016438,2]
[366089390,1750057837665,-490.0,0.00016438,2]
[366089391,1750057837678,-490.0,0.00016438,2]
[366089392,1750057837688,-2228.07,0.00016438,2]
[366089393,1750057837700,-490.0,0.00016438,2]
[366089394,1750057837710,-490.0,0.00016438,2]
[366089395,1750057837720,-491.48571085,0.00016438,2]
[366089396,1750057837731,-673.03,0.00016438,2]
[366089397,1750057837741,-490.0,0.00016438,2]
[366089398,1750057837751,-490.0,0.00016438,2]
[366089399,1750057837762,-997.83,0.00016438,2]
[366089400,1750057837780,-490.0,0.00016438,2]
[366089401,1750057837792,-1005.43,0.00016438,2]
[366089402,1750057837804,-490.0,0.00016438,2]
[366089403,1750057837815,-680.3,0.00016438,2]
[366089404,1750057837828,-490.0,0.00016438,2]
[366089405,1750057837839,-1785.13,0.00016438,2]
[366089406,1750057837850,-490.0,0.00016438,2]
[366089407,1750057837861,-741.06,0.00016438,2]
[366089408,1750057837872,-490.0,0.00016438,2]
[366089409,1750057837883,-572.97,0.00016438,2]
[366089410,1750057837894,-602.11,0.00016438,2]
[366089411,1750057837904,-490.0,0.00016438,2]
[366089412,1750057837915,-490.0,0.00016438,2]
[366089413,1750057837926,-554.43,0.00016438,2]
[366089414,1750057837936,-818.16,0.00016438,2]
[366089415,1750057837947,-1533.05,0.00016438,2]
[366089416,1750057837958,-490.0,0.00016438,2]
[366089417,1750057837969,-533.9843563,0.00016438,2]
[366089418,1750057837979,-492.31713965,0.00016438,2]
[366089419,1750057837990,-490.0,0.00016438,2]
[366089420,1750057838000,-509.96,0.00016438,2]
[366089421,1750057838011,-193.0023982,0.00016438,2]
[366089422,1750057838022,-490.0,0.00016438,2]
[366089423,1750057838033,-490.0,0.00016438,2]
[366089424,1750057838043,-1272.34,0.00016438,2]
[366089425,1750057838054,-490.0,0.00016438,2]
[366089426,1750057838065,-490.0,0.00016438,2]
[366089427,1750057838077,-490.0,0.00016438,2]
[366089428,1750057838088,-490.0,0.00016438,2]
[366089429,1750057838099,-497.04227004,0.00016438,2]
[366089430,1750057838109,-490.0,0.00016438,2]
[366089431,1750057838120,-516.29,0.00016438,2]
[366089432,1750057838131,-490.0,0.00016438,2]
[366089433,1750057838141,-541.97,0.00016438,2]
[366089434,1750057838152,-490.0,0.00016438,2]
[366089436,1750057838164,-490.0,0.00016438,2]
[366089437,1750057838175,-615.68,0.00016438,2]
[366089438,1750057838186,-490.0,0.00016438,2]
[366089439,1750057838196,-490.0,0.00016438,2]
[366089440,1750057838212,-464.00078561,0.00016438,2]
[366089441,1750057838224,-499.52,0.00016438,2]
[366089442,1750057838236,-856.33,0.00016438,2]
[366089443,1750057838247,-836.33,0.00016438,2]
[366089444,1750057838258,-490.0,0.00016438,2]
[366089445,1750057838268,-674.21,0.00016438,2]
[366089446,1750057838280,-490.0,0.00016438,2]
[366089447,1750057838291,-1081.28,0.00016438,2]
[366089448,1750057838301,-490.0,0.00016438,2]
[366089449,1750057838313,-490.0,0.00016438,2]
[366089450,1750057838323,-491.50552325,0.00016438,2]
[366089451,1750057838336,-1046.72,0.00016438,2]
[366089452,1750057838347,-490.0,0.00016438,2]
[366089453,1750057838359,-615.1,0.00016438,2]
[366089454,1750057838370,-1150.47,0.00016438,2]
[366089455,1750057838381,-490.0,0.00016438,2]
[366089456,1750057838392,-973.38,0.00016438,2]
[366089457,1750057838403,-2211.27,0.00016438,2]
[366089458,1750057838414,-491.78920815,0.00016438,2]
[366089459,1750057838425,-589.75,0.00016438,2]
[366089460,1750057838436,-490.0,0.00016438,2]
[366089461,1750057838447,-1499.63,0.00016438,2]
[366089462,1750057838459,-490.0,0.00016438,2]
[366089463,1750057838471,-2303.94,0.00016438,2]
[366089464,1750057838481,-548.17,0.00016438,2]
[366089465,1750057838492,-491.13453976,0.00016438,2]
[366089466,1750057838504,-865.25,0.00016438,2]
[366089467,1750057838515,-1819.21,0.00016438,2]
[366089468,1750057838526,-1316.98,0.00016438,2]
[366089469,1750057838538,-1841.7,0.00016438,2]
[366089470,1750057838549,-490.90322438,0.00016438,2]
[366089471,1750057838559,-809.09,0.00016438,2]
[366089472,1750057838570,-490.0,0.00016438,2]
[366089473,1750057838581,-490.0,0.00016438,2]
[366089474,1750057838592,-490.0,0.00016438,2]
[366089475,1750057838608,-1659.18,0.00016438,2]
[366089476,1750057838619,-494.06517075,0.00016438,2]
[366089477,1750057838630,-424.66587258,0.00016438,2]
[366089478,1750057838642,-517.04,0.00016438,2]
[366089479,1750057838657,-490.0,0.00016438,2]
[366089480,1750057838667,-758.19,0.00016438,2]
[366089482,1750057838680,-506.4373022,0.00016438,2]
[366089484,1750057838691,-490.0,0.00016438,2]
[366089485,1750057838702,-623.50799615,0.00016438,2]
[366089486,1750057838712,-490.0,0.00016438,2]
[366089487,1750057838723,-490.0,0.00016438,2]
[366089488,1750057838734,-1141.54,0.00016438,2]